bitfinex/quotes_BTCUSD_20251205
["timestamp","ask_amount","ask_price","bid_price","bid_amount"]
[1764959044949,0.00263895,89409.0,89408.0,0.29921469]
[1764959045168,0.00063895,89409.0,89408.0,0.29721469]
[1764959045594,0.02163895,89409.0,89408.0,0.31966554]
[1764959045809,0.00063895,89409.0,89408.0,0.31966554]
[1764959046011,0.00063895,89409.0,89408.0,0.64266554]
[1764959046219,0.00263895,89409.0,89408.0,0.64366554]
[1764959046426,0.00363895,89409.0,89408.0,0.64266554]
[1764959046845,0.00063895,89409.0,89408.0,0.64266554]
[1764959047252,0.00063895,89409.0,89408.0,0.64366554]
[1764959047895,0.00263895,89409.0,89408.0,0.85490417]
[1764959048095,0.22360258,89445.0,89408.0,0.70818853]
[1764959048298,0.00028436,89440.0,89439.0,0.03745107]
[1764959048929,0.00122193,89440.0,89439.0,0.03745107]
[1764959049174,0.00122193,89440.0,89439.0,0.11149192]
[1764959049573,0.02022193,89440.0,89439.0,0.11149192]
[1764959050582,0.02022193,89440.0,89439.0,0.11249192]
[1764959050805,0.00122193,89440.0,89439.0,0.11249192]
[1764959051015,0.00222193,89440.0,89439.0,0.11549192]
[1764959053525,0.00222193,89440.0,89439.0,0.43849192]
[1764959054357,0.00222193,89440.0,89439.0,0.50101491]
[1764959055518,0.00122193,89440.0,89439.0,0.49801491]
[1764959055737,0.00322193,89440.0,89439.0,0.50101491]
[1764959056011,0.00322193,89440.0,89439.0,0.50301491]
[1764959057106,0.00322193,89440.0,89439.0,0.38772107]
[1764959057314,0.00322193,89440.0,89439.0,0.41804107]
[1764959057516,0.02440193,89440.0,89439.0,0.006]
[1764959057725,0.0260148,89440.0,89439.0,0.006]
[1764959057931,0.0564148,89440.0,89439.0,0.006]
[1764959058353,0.0260148,89440.0,89439.0,0.006]
[1764959058567,0.0544148,89440.0,89439.0,0.002]
[1764959058779,0.22361609,89439.0,89437.0,0.02193107]
[1764959059007,0.02118,89438.0,89437.0,0.02193107]
[1764959059328,0.24479859,89438.0,89437.0,0.02193107]
[1764959059525,0.22361859,89438.0,89437.0,0.02193107]
[1764959059757,0.22522896,89439.0,89430.0,0.01118193]
[1764959059758,0.23641211,89439.0,89438.0,0.02193107]
[1764959060611,0.23481526,89432.0,89431.0,0.02193107]
[1764959060831,0.23451526,89432.0,89431.0,0.02193107]
[1764959061243,0.01118167,89432.0,89431.0,0.04320107]
[1764959061450,0.23481526,89432.0,89431.0,0.04320107]
[1764959061688,0.23481764,89433.0,89431.0,0.02127]
[1764959061898,0.23481764,89433.0,89432.0,0.02193107]
[1764959062412,0.23480973,89435.0,89434.0,0.02193107]
[1764959062637,0.0111813,89435.0,89434.0,0.02193107]
[1764959062884,0.01117992,89446.0,89439.0,0.02193107]
[1764959063107,0.23479414,89441.0,89439.0,0.02193107]
[1764959063568,0.01118042,89442.0,89439.0,0.24554716]
[1764959063772,0.23478911,89442.0,89439.0,0.02193107]
[1764959063981,0.22389795,89440.0,89439.0,0.02193107]
[1764959064447,0.22389795,89440.0,89415.0,0.0267038]
[1764959064448,0.22363359,89432.0,89415.0,0.0267038]
[1764959064659,0.2236461,89427.0,89426.0,0.0178]
[1764959064858,0.22365953,89422.0,89421.0,0.02193107]
[1764959065098,0.22365953,89422.0,89421.0,0.03973107]
[1764959065663,0.2348391,89423.0,89421.0,0.0178]
[1764959065864,0.0111828,89423.0,89422.0,0.02193107]
[1764959066756,0.2348389,89423.0,89422.0,0.02193107]
[1764959067380,0.2348389,89423.0,89421.0,0.0178]
[1764959067381,0.2236586,89422.0,89421.0,0.006]
[1764959067586,0.27685147,89422.0,89421.0,0.002]
[1764959068226,0.24645147,89422.0,89421.0,0.002]
[1764959068522,0.24645147,89422.0,89421.0,0.02393107]
[1764959068668,0.37294712,89422.0,89421.0,0.006]
[1764959068987,0.22370613,89403.0,89402.0,0.18853107]
[1764959069182,0.22370613,89403.0,89402.0,0.03973107]
[1764959070070,0.22370613,89403.0,89402.0,0.04073107]
[1764959070329,0.22370613,89403.0,89402.0,0.001]
[1764959070505,0.276899,89403.0,89402.0,0.001]
[1764959070711,0.23491872,89393.0,89392.0,0.02193107]
[1764959070914,0.01118655,89393.0,89392.0,0.02193107]
[1764959071309,0.01118655,89393.0,89391.0,0.22373562]
[1764959071514,0.01118655,89393.0,89392.0,0.02193107]
[1764959071782,0.01553,89398.0,89395.0,0.23491245]
[1764959072085,0.22371976,89398.0,89395.0,0.25684352]
[1764959072428,0.23490274,89399.0,89398.0,0.02193107]
[1764959072622,0.73191705,89480.0,89399.0,0.02193107]
[1764959072623,0.00944,89406.0,89399.0,0.02193107]
[1764959072921,0.23488133,89407.0,89406.0,0.02193107]
[1764959073103,0.000119,89407.0,89406.0,0.02193107]
[1764959073308,0.23489407,89402.0,89395.0,0.003]
[1764959073623,0.23489171,89403.0,89401.0,0.02193107]
[1764959073810,0.22370259,89405.0,89402.0,0.01552]
[1764959073811,0.23488764,89405.0,89402.0,0.01552]
[1764959074006,0.22370445,89404.0,89402.0,0.01552]
[1764959074285,0.002119,89407.0,89404.0,0.23488611]
[1764959074487,0.002119,89407.0,89405.0,0.22370044]
[1764959074817,0.002119,89407.0,89406.0,0.02193107]
[1764959075016,0.002119,89407.0,89406.0,0.04151107]
[1764959075339,0.018119,89407.0,89406.0,0.01958]
[1764959075556,0.018119,89407.0,89406.0,0.04151107]
[1764959075753,0.000119,89407.0,89406.0,0.01958]
[1764959076003,0.000119,89407.0,89406.0,0.04151107]
[1764959076198,0.016119,89407.0,89406.0,0.04351107]
[1764959076416,0.016119,89407.0,89406.0,0.05086]
[1764959076580,0.016119,89407.0,89406.0,0.04351107]
[1764959076800,0.016119,89407.0,89406.0,0.002]
[1764959077009,0.06874187,89407.0,89406.0,0.002]
[1764959078021,0.08654187,89407.0,89406.0,0.002]
[1764959078573,0.22378123,89373.0,89371.0,0.01457]
[1764959078773,0.22378123,89373.0,89372.0,0.02193107]
[1764959079399,0.01118893,89374.0,89373.0,0.02193107]
[1764959079867,0.23495468,89379.0,89375.0,0.24570571]
[1764959080011,0.01118843,89378.0,89375.0,0.24570685]
[1764959080420,0.23495885,89378.0,89377.0,0.02193107]
[1764959080621,0.22377161,89377.0,89375.0,0.02193107]
[1764959080826,0.22377872,89374.0,89373.0,0.02232797]
[1764959081659,0.01118868,89376.0,89375.0,0.02193107]
[1764959081870,0.44740546,89405.0,89375.0,0.02193107]
[1764959081871,0.01118768,89384.0,89377.0,0.01118856]
[1764959082072,0.23494524,89383.0,89380.0,0.01118818]
[1764959082275,0.0111878,89383.0,89380.0,0.23495132]
[1764959082457,0.0111878,89383.0,89380.0,0.23495162]
[1764959082655,0.0111873,89387.0,89382.0,0.01958]
[1764959082858,0.01118705,89389.0,89386.0,0.22374825]
[1764959082859,0.23492909,89389.0,89386.0,0.22374825]
[1764959083081,0.22374374,89388.0,89385.0,0.22375073]
[1764959083279,0.01118668,89392.0,89386.0,0.23493503]
[1764959083582,0.01118643,89394.0,89391.0,0.0443868]
[1764959083767,0.01118643,89394.0,89393.0,0.02193107]
[1764959083970,0.01118718,89388.0,89385.0,0.02193107]
[1764959084168,0.22374915,89386.0,89385.0,0.02193107]
[1764959084369,0.22376946,89378.0,89376.0,0.02193107]
[1764959084611,0.22376946,89378.0,89377.0,0.0178]
[1764959084819,0.22376946,89378.0,89373.0,0.02284775]
[1764959084820,0.22377872,89374.0,89373.0,0.02284775]
[1764959085030,0.23921872,89374.0,89373.0,0.0003969]
[1764959085217,0.01544,89374.0,89373.0,0.0003969]
[1764959085417,0.01418843,89378.0,89374.0,0.01118893]
[1764959085570,0.01118868,89376.0,89373.0,0.02232797]
[1764959085776,0.01118843,89378.0,89374.0,0.02193107]
[1764959085993,0.23495881,89378.0,89374.0,0.01118893]
[1764959086254,0.01118831,89379.0,89375.0,0.01118881]
[1764959086387,0.22375369,89384.0,89383.0,0.02193107]
[1764959086590,0.01118818,89380.0,89379.0,0.02193107]
[1764959086910,0.01118768,89384.0,89383.0,0.02193107]
[1764959087089,0.23493269,89388.0,89384.0,0.01118768]
[1764959087288,0.0111873,89387.0,89386.0,0.02193107]
[1764959087486,0.33555568,89404.0,89386.0,0.02193107]
[1764959087487,0.0111868,89391.0,89386.0,0.02193107]
[1764959087691,0.0111868,89391.0,89382.0,0.01118793]
[1764959087692,0.23492297,89391.0,89390.0,0.02193107]
[1764959087889,0.22375017,89386.0,89385.0,0.02193107]
[1764959088498,0.23494138,89384.0,89383.0,0.02193107]
[1764959088818,0.22375163,89385.0,89383.0,0.02193107]
[1764959088978,0.2349376,89386.0,89383.0,0.24568725]
[1764959089609,0.2349376,89386.0,89383.0,0.25687505]
[1764959089805,0.002,89387.0,89385.0,0.24281118]
[1764959090038,0.002,89387.0,89386.0,0.26473975]
[1764959090194,0.22372548,89396.0,89393.0,0.02193107]
[1764959090195,0.23491063,89396.0,89393.0,0.02193107]
[1764959090397,0.01118618,89396.0,89394.0,0.22372827]
[1764959090612,0.23490725,89397.0,89394.0,0.22372827]
[1764959090826,0.01118643,89394.0,89389.0,0.01228]
[1764959091051,0.01118643,89394.0,89393.0,0.02193107]
[1764959091052,0.23491707,89394.0,89393.0,0.02193107]
[1764959091352,0.22374168,89389.0,89387.0,0.1488]
[1764959091496,0.23492625,89390.0,89387.0,0.372546]
[1764959091710,0.01118668,89392.0,89391.0,0.02193107]
[1764959091916,0.23492034,89392.0,89391.0,0.02193107]
[1764959092413,0.23492034,89392.0,89389.0,0.01228]
[1764959092414,0.22374367,89388.0,89387.0,0.1488]
[1764959092750,0.24439367,89388.0,89387.0,0.1488]
[1764959093068,0.27593367,89388.0,89387.0,0.1488]
[1764959094382,0.27793367,89388.0,89387.0,0.1488]
[1764959094881,0.28893367,89388.0,89387.0,0.1488]
[1764959095589,0.25739367,89388.0,89387.0,0.1488]
[1764959095729,0.27793367,89388.0,89387.0,0.1488]
[1764959095929,0.28893367,89388.0,89387.0,0.1488]
[1764959096128,0.28693367,89388.0,89387.0,0.1488]
[1764959096385,0.2237637,89380.0,89379.0,0.17073107]
[1764959096763,0.22374625,89387.0,89384.0,0.01118768]
[1764959096963,0.22374883,89386.0,89385.0,0.02193107]
[1764959097166,0.22375378,89384.0,89381.0,0.23494702]
[1764959097372,0.22375378,89384.0,89383.0,0.02193107]
[1764959097573,0.23493879,89385.0,89384.0,0.02193107]
[1764959097792,0.22375382,89384.0,89383.0,0.02193107]
[1764959098207,0.01531,89387.0,89386.0,0.02193107]
[1764959098445,0.0111873,89387.0,89385.0,0.24568201]
[1764959098629,0.01118718,89388.0,89385.0,0.25686975]
[1764959098960,0.23491532,89394.0,89393.0,0.02193107]
[1764959099089,0.01118643,89394.0,89393.0,0.02193107]
[1764959099298,0.23491509,89394.0,89393.0,0.02193107]
[1764959100357,0.01930568,89400.0,89396.0,0.01118618]
[1764959100562,0.22372365,89396.0,89395.0,0.02193107]
[1764959100809,0.01118518,89404.0,89399.0,0.22371614]
[1764959101002,0.04531935,89427.0,89410.0,0.01118443]
[1764959101003,0.0111838,89415.0,89410.0,0.01118443]
[1764959101144,0.01118368,89416.0,89392.0,0.0178]
[1764959101145,0.22370864,89402.0,89392.0,0.0178]
[1764959101521,0.01118831,89379.0,89376.0,0.02193107]
[1764959101722,0.22378874,89370.0,89369.0,0.01461]
[1764959101921,0.01118856,89377.0,89375.0,0.02193107]
[1764959102103,0.01118831,89379.0,89378.0,0.02193107]
[1764959102340,0.23495538,89379.0,89378.0,0.02193107]
[1764959102495,0.22376389,89380.0,89378.0,0.0331195]
[1764959102673,0.2257662,89379.0,89378.0,0.02193107]
[1764959102884,0.2257662,89379.0,89375.0,0.0003969]
[1764959102885,0.01118843,89378.0,89375.0,0.0003969]
[1764959103089,0.24310372,89376.0,89375.0,0.0003969]
[1764959103761,0.27261372,89376.0,89375.0,0.0003969]
[1764959103974,0.27261372,89376.0,89357.0,0.02547106]
[1764959103975,0.01277,89368.0,89334.0,0.04345617]
[1764959104187,0.01277,89368.0,89314.0,0.15226086]
[1764959104188,0.22388393,89332.0,89330.0,0.0004]
[1764959104405,0.22386759,89339.0,89314.0,0.01119018]
[1764959104406,0.2351176,89317.0,89314.0,0.01119018]
[1764959104606,0.22393407,89312.0,89311.0,0.01428]
[1764959104820,0.22393407,89312.0,89311.0,8.436e-05]
[1764959106341,0.22554694,89312.0,89311.0,8.436e-05]
[1764959106555,0.29106993,89312.0,89311.0,8.436e-05]
[1764959106984,0.37122422,89312.0,89311.0,8.436e-05]
[1764959107212,0.60948464,89301.0,89300.0,0.0004]
[1764959107433,0.60948464,89301.0,89280.0,0.0004]
[1764959107434,0.22398673,89291.0,89280.0,0.0004]
[1764959107699,0.60953481,89281.0,89280.0,0.0004]
[1764959107942,0.62898768,89281.0,89280.0,0.0004]
[1764959108807,5.62898768,89281.0,89280.0,0.0004]
[1764959109019,0.77228768,89281.0,89280.0,0.0004]
[1764959109614,0.62898768,89281.0,89280.0,0.0004]
[1764959109829,0.64498768,89281.0,89280.0,0.0004]
[1764959109950,5.64498768,89281.0,89280.0,0.0004]
[1764959110154,5.64498768,89281.0,89280.0,0.0030368]
[1764959110368,4.98458768,89281.0,89280.0,0.0030368]
[1764959110581,4.52028768,89281.0,89280.0,0.0030368]
[1764959110802,0.24301182,89281.0,89280.0,0.0030368]
[1764959111043,0.22701182,89281.0,89280.0,0.0030368]
[1764959111256,0.22401182,89281.0,89280.0,0.0030368]
[1764959111633,0.22701182,89281.0,89280.0,0.0030368]
[1764959111910,0.24101182,89281.0,89280.0,0.0030368]
[1764959112088,0.24101182,89281.0,89280.0,0.07454787]
[1764959112089,0.017,89281.0,89280.0,0.07454787]
[1764959112293,0.003,89281.0,89280.0,0.07454787]
[1764959112490,0.016,89281.0,89280.0,0.07454787]
[1764959112691,0.016,89281.0,89280.0,0.04531787]
[1764959112902,0.23520829,89283.0,89282.0,0.02193107]
[1764959113074,0.23520829,89283.0,89282.0,0.03621107]
[1764959114307,0.23520829,89283.0,89282.0,0.05656107]
[1764959114524,0.23520829,89283.0,89282.0,0.05856107]
[1764959114851,0.23720829,89283.0,89282.0,0.05856107]
[1764959115057,0.28718274,89283.0,89282.0,0.002]
[1764959115289,0.34970573,89283.0,89282.0,0.002]
[1764959115898,0.28653481,89281.0,89280.0,0.0004]
[1764959116252,0.22401182,89281.0,89280.0,0.0004]
[1764959116464,0.23720829,89283.0,89280.0,0.02075]
[1764959116667,0.23720829,89283.0,89282.0,0.01428]
[1764959116910,0.01320034,89283.0,89282.0,0.03463]
[1764959117148,0.01320034,89283.0,89282.0,0.06386]
[1764959117575,0.01120008,89285.0,89282.0,0.06386]
[1764959117777,0.2240043,89284.0,89282.0,0.01428]
[1764959117976,0.2240043,89284.0,89283.0,0.02193107]
[1764959118206,0.2240043,89284.0,89283.0,0.07151107]
[1764959118634,0.2240043,89284.0,89283.0,0.04228107]
[1764959118840,0.2240043,89284.0,89283.0,0.02193107]
[1764959119044,0.2240043,89284.0,89282.0,0.01428]
[1764959119245,0.22401182,89281.0,89280.0,0.0004]
[1764959119862,0.22401182,89281.0,89280.0,0.02075]
[1764959120295,0.22401182,89281.0,89280.0,0.0004]
[1764959121823,0.22901182,89281.0,89280.0,0.02175]
[1764959121955,0.22901182,89281.0,89280.0,0.0014]
[1764959122160,0.005,89281.0,89280.0,0.02175]
[1764959122359,0.22901182,89281.0,89280.0,0.07391107]
[1764959122559,0.22400076,89286.0,89280.0,0.05098]
[1764959122763,0.23520636,89284.0,89283.0,0.02193107]
[1764959123214,0.23520636,89284.0,89283.0,0.04228107]
[1764959123626,0.2240043,89284.0,89283.0,0.02035]
[1764959123831,0.23520072,89286.0,89285.0,0.02193107]
[1764959124115,0.23520072,89286.0,89285.0,0.02035]
[1764959124322,0.1178,89339.0,89285.0,0.02035]
[1764959124323,0.01119783,89303.0,89290.0,0.02193107]
[1764959124564,0.01119808,89301.0,89290.0,0.04228107]
[1764959124756,0.01119733,89307.0,89290.0,0.07151107]
[1764959124970,0.01119632,89315.0,89310.0,0.22393681]
[1764959125116,0.23513106,89312.0,89310.0,0.01784]
[1764959125317,0.01119657,89313.0,89310.0,0.04707]
[1764959125723,0.01119657,89313.0,89312.0,0.01428]
[1764959125968,0.00010194,89315.0,89314.0,0.02193107]
[1764959126210,0.01119745,89306.0,89304.0,0.01428]
[1764959126409,0.23517952,89294.0,89285.0,0.03123]
[1764959126560,0.01119908,89293.0,89292.0,0.02193107]
[1764959126766,0.2351825,89293.0,89292.0,0.04228107]
[1764959126963,0.2351825,89293.0,89292.0,0.06016107]
[1764959127188,0.22396765,89299.0,89296.0,0.0111987]
[1764959127369,0.01119758,89305.0,89304.0,0.02193107]
[1764959127570,0.01119733,89307.0,89306.0,0.05656107]
[1764959127981,0.01119707,89309.0,89308.0,0.02193107]
[1764959128157,0.01119758,89305.0,89302.0,0.01788]
[1764959128381,0.22395524,89304.0,89302.0,0.01788]
[1764959128720,0.22398172,89293.0,89289.0,0.01119958]
[1764959128925,0.22398172,89293.0,89292.0,0.01988]
[1764959129074,0.23516038,89301.0,89293.0,0.01119908]
[1764959129417,0.51030149,89330.0,89302.0,0.23715464]
[1764959129418,0.002,89305.0,89302.0,0.23715464]
[1764959129615,0.002,89305.0,89304.0,0.02193107]
[1764959129793,0.22395413,89304.0,89303.0,0.03463]
[1764959130116,0.22395413,89304.0,89303.0,0.05656107]
[1764959130412,0.22395413,89304.0,89302.0,0.002]
[1764959130562,0.22395413,89304.0,89303.0,0.02035]
[1764959130758,0.22395413,89304.0,89303.0,0.04228107]
[1764959131006,0.01119707,89309.0,89306.0,0.02193107]
[1764959131007,0.22394529,89308.0,89306.0,0.02193107]
[1764959131209,0.03510548,89307.0,89306.0,0.02193107]
[1764959131406,0.25905453,89307.0,89306.0,0.02193107]
[1764959131810,0.02390815,89307.0,89306.0,0.07151107]
[1764959132641,0.02590815,89307.0,89306.0,0.29746018]
[1764959132869,0.002,89307.0,89306.0,0.02393107]
[1764959133073,0.0260019,89307.0,89306.0,0.002]
[1764959133707,0.0260019,89307.0,89306.0,0.004]
[1764959134099,0.0240019,89307.0,89306.0,0.002]
[1764959134495,0.01119833,89299.0,89296.0,0.01428]
[1764959134735,0.24797108,89298.0,89296.0,0.01428]
[1764959134866,0.0240019,89297.0,89296.0,0.01428]
[1764959135292,0.0240019,89297.0,89296.0,0.01643149]
[1764959135693,0.0240019,89297.0,89296.0,0.03860149]
[1764959136151,0.0240019,89297.0,89296.0,0.03760149]
[1764959136348,0.0240019,89297.0,89296.0,0.06919149]
[1764959136905,0.0240019,89297.0,89296.0,0.09312256]
[1764959137102,0.22396692,89299.0,89296.0,0.09312256]
[1764959137103,0.01119833,89299.0,89298.0,0.02193107]
[1764959137335,0.035264,89299.0,89298.0,0.04310107]
[1764959137531,0.22396918,89298.0,89296.0,0.002]
[1764959137735,0.02406567,89297.0,89296.0,0.002]
[1764959137945,0.24803735,89297.0,89296.0,0.002]
[1764959138140,0.02406567,89297.0,89296.0,0.05476]
[1764959138341,0.02406567,89297.0,89296.0,0.30066526]
[1764959138545,0.02606567,89297.0,89296.0,0.31723526]
[1764959138943,0.002,89297.0,89296.0,0.31723526]
[1764959139282,0.22564247,89315.0,89311.0,0.22393658]
[1764959139283,0.00010194,89315.0,89311.0,0.22393658]
[1764959139473,0.00010194,89315.0,89314.0,0.28360012]
[1764959139891,0.00010194,89315.0,89314.0,0.31519012]
[1764959140433,0.00210194,89315.0,89314.0,0.31519012]
[1764959141062,0.00010194,89315.0,89314.0,0.31519012]
[1764959141260,0.00010194,89315.0,89314.0,0.09126107]
[1764959142083,0.00210194,89315.0,89314.0,0.09126107]
[1764959142443,0.00010194,89315.0,89314.0,0.09226107]
[1764959142868,0.00210194,89315.0,89314.0,0.09826107]
[1764959144624,0.00210194,89315.0,89314.0,0.42126107]
[1764959145309,0.03007466,89352.0,89349.0,0.01119206]
[1764959145521,0.01280456,89352.0,89351.0,0.02193107]
[1764959145728,0.00161287,89352.0,89351.0,0.02193107]
[1764959145938,0.03007466,89363.0,89358.0,0.01119093]
[1764959145939,0.02403188,89360.0,89358.0,0.01119093]
[1764959146143,0.23499778,89363.0,89362.0,0.04310107]
[1764959147362,0.23661065,89363.0,89362.0,0.001]
[1764959149103,0.22383883,89350.0,89349.0,0.00011911]
[1764959150491,0.22483883,89350.0,89349.0,0.00311911]
[1764959150716,0.22383883,89350.0,89349.0,0.00011911]
[1764959151160,0.22583883,89350.0,89349.0,0.00211911]
[1764959151587,0.28836182,89350.0,89349.0,0.00211911]
[1764959152277,0.28836182,89350.0,89349.0,0.00111911]
[1764959152278,0.36411451,89350.0,89349.0,0.00111911]
[1764959152403,0.28827402,89350.0,89349.0,0.00111911]
[1764959152749,0.28727402,89350.0,89349.0,0.00011911]
[1764959152954,0.29727402,89350.0,89349.0,0.00111911]
[1764959153158,0.29627402,89350.0,89349.0,0.00011911]
[1764959153361,0.28627402,89350.0,89349.0,0.00011911]
[1764959153662,0.30627402,89350.0,89349.0,0.00211911]
[1764959154564,0.30627402,89350.0,89349.0,0.00266424]
[1764959157788,0.24375103,89350.0,89349.0,0.00266424]
[1764959157989,0.02,89350.0,89349.0,0.30104665]
[1764959158190,0.02,89350.0,89349.0,0.07720531]
[1764959158471,0.24383883,89350.0,89349.0,0.04575531]
[1764959158673,0.24383883,89350.0,89349.0,0.02382424]
[1764959158886,0.24383883,89350.0,89349.0,0.04575531]
[1764959159023,0.02,89350.0,89349.0,0.07720531]
[1764959159529,0.24383883,89350.0,89349.0,0.07720531]
[1764959159725,0.02,89350.0,89349.0,0.30104665]
[1764959159922,0.02,89350.0,89349.0,0.04575531]
[1764959160241,0.02,89350.0,89349.0,0.30104665]
[1764959162011,0.02,89350.0,89349.0,0.62404665]
[1764959162012,0.018,89350.0,89349.0,0.62404665]
[1764959162224,0.01118793,89382.0,89377.0,0.01118856]
[1764959162342,0.01118755,89385.0,89382.0,0.04309107]
[1764959162750,0.01118718,89388.0,89382.0,0.07216107]
[1764959162949,0.01118705,89389.0,89382.0,0.07216107]
[1764959163172,0.01118655,89393.0,89382.0,0.07216107]
[1764959163374,0.00135161,89383.0,89382.0,0.07216107]
[1764959163588,0.02135161,89383.0,89382.0,0.07416107]
[1764959164131,0.02135161,89383.0,89382.0,0.07216107]
[1764959164132,0.00135161,89383.0,89382.0,0.07216107]
[1764959164881,0.00135161,89383.0,89382.0,0.39516107]
[1764959165290,0.00235161,89383.0,89382.0,0.39716107]
[1764959165840,0.00135161,89383.0,89382.0,0.41300107]
[1764959166137,0.00235161,89383.0,89382.0,0.41700107]
[1764959166385,0.00235161,89383.0,89382.0,0.07616107]
[1764959166585,0.00235161,89383.0,89382.0,0.09400107]
[1764959167178,0.00235161,89383.0,89382.0,0.07616107]
[1764959167363,0.00235161,89383.0,89382.0,0.09400107]
[1764959167596,0.00235161,89383.0,89382.0,5.41700107]
[1764959168008,0.06252299,89424.0,89383.0,0.323]
[1764959168139,0.22368498,89412.0,89399.0,0.05789107]
[1764959168348,0.00031911,89400.0,89399.0,0.07573107]
[1764959168561,0.22403275,89400.0,89399.0,0.03596]
[1764959168798,0.0111863,89395.0,89394.0,0.02193107]
[1764959168971,0.22373116,89393.0,89388.0,0.02907]
[1764959169327,0.22373116,89393.0,89392.0,0.03353]
[1764959169650,0.22373116,89393.0,89392.0,0.0538]
[1764959169902,0.22373116,89393.0,89392.0,0.07573107]
[1764959170105,0.22373116,89393.0,89392.0,0.0548]
[1764959170321,0.00193198,89400.0,89398.0,0.22371763]
[1764959170474,0.00031911,89400.0,89399.0,0.07127107]
[1764959172002,0.00031911,89400.0,89399.0,0.04220107]
[1764959172207,0.00031911,89400.0,89394.0,0.02193107]
[1764959172208,0.23491245,89395.0,89394.0,0.02193107]
[1764959172701,0.23491245,89395.0,89392.0,0.01669]
[1764959172702,0.22573116,89393.0,89392.0,0.01669]
[1764959173111,0.22372912,89394.0,89392.0,0.06503]
[1764959173285,0.22372912,89394.0,89393.0,0.02193107]
[1764959173494,0.22372912,89394.0,89393.0,0.02027]
[1764959173713,0.23491312,89395.0,89393.0,0.02027]
[1764959173907,0.23491312,89395.0,89394.0,0.02027]
[1764959174299,0.23527628,89395.0,89394.0,0.02027]
[1764959174498,0.23527628,89395.0,89394.0,0.04220107]
[1764959175468,0.23527628,89395.0,89394.0,0.02027]
[1764959175953,0.23927628,89395.0,89394.0,0.02127]
[1764959176095,0.23927628,89395.0,89394.0,0.02293107]
[1764959176300,0.23927628,89395.0,89394.0,0.001]
[1764959176504,0.23927628,89395.0,89394.0,0.02127]
[1764959176705,0.23927628,89395.0,89394.0,0.02227]
[1764959177403,0.23927628,89395.0,89394.0,0.07327107]
[1764959177832,0.00436316,89395.0,89394.0,0.05134]
[1764959178085,0.00436316,89395.0,89394.0,0.11692647]
[1764959178502,0.00436316,89395.0,89394.0,0.09572192]
[1764959179251,0.00436316,89395.0,89394.0,0.02393107]
[1764959179453,0.00436316,89395.0,89394.0,0.09111107]
[1764959180278,0.00436316,89395.0,89394.0,0.07327107]
[1764959180476,0.00436316,89395.0,89394.0,0.02227]
[1764959180652,0.22808931,89395.0,89394.0,0.07327107]
[1764959181124,0.00436316,89395.0,89394.0,0.07327107]
[1764959181620,0.22808931,89395.0,89394.0,0.07327107]
[1764959182202,0.00436316,89395.0,89394.0,0.07327107]
[1764959182525,0.22808931,89395.0,89394.0,0.22207107]
[1764959183035,0.00436316,89395.0,89394.0,0.22207107]
[1764959183238,0.00436316,89395.0,89394.0,0.20014]
[1764959183444,0.00436316,89395.0,89394.0,0.44579973]
[1764959183608,0.00436316,89395.0,89394.0,0.22207107]
[1764959183812,0.00436316,89395.0,89394.0,0.44579973]
[1764959184716,0.22808931,89395.0,89394.0,0.17107]
[1764959185051,0.22808931,89395.0,89394.0,0.22207107]
[1764959185996,0.00436316,89395.0,89394.0,0.42386866]
[1764959186219,0.00436316,89395.0,89394.0,0.44579973]
[1764959186602,0.00436316,89395.0,89394.0,0.22207107]
[1764959186802,0.00436316,89395.0,89394.0,0.44579973]
[1764959188220,0.00436316,89395.0,89394.0,0.07327107]
[1764959188421,0.22808931,89395.0,89394.0,0.02393107]
[1764959188759,0.22808931,89395.0,89394.0,0.002]
[1764959188946,0.22970218,89395.0,89394.0,0.002]
[1764959189471,0.00597603,89395.0,89394.0,0.02227]
[1764959189624,0.00436316,89395.0,89394.0,0.07327107]
[1764959189824,0.22808931,89395.0,89394.0,0.07327107]
[1764959191558,0.22808931,89395.0,89394.0,0.04420107]
[1764959192067,0.22808931,89395.0,89394.0,0.07327107]
[1764959192741,0.22808931,89395.0,89394.0,0.03190035]
[1764959192913,0.22808931,89395.0,89394.0,0.002]
[1764959193271,0.22970218,89395.0,89394.0,0.002]
[1764959193703,0.29222517,89395.0,89394.0,0.002]
[1764959194128,0.22970218,89395.0,89394.0,0.0217]
[1764959194334,0.00597603,89395.0,89394.0,0.04984]
[1764959194535,0.00597603,89395.0,89394.0,0.29549973]
[1764959194887,0.00236316,89395.0,89394.0,0.29449973]
[1764959195122,0.02036316,89395.0,89394.0,0.29649973]
[1764959195335,0.00036316,89395.0,89394.0,0.29449973]
[1764959195648,0.00236316,89395.0,89394.0,0.29649973]
[1764959195849,0.00036316,89395.0,89394.0,0.29549973]
[1764959196290,0.00136316,89395.0,89394.0,0.29649973]
[1764959196509,0.00136316,89395.0,89394.0,0.32640008]
[1764959196698,0.00136316,89395.0,89394.0,0.33608856]
[1764959196892,0.00136316,89395.0,89394.0,0.29649973]
[1764959197410,0.00136316,89395.0,89394.0,0.29549973]
[1764959197708,0.00136316,89395.0,89394.0,0.29649973]
[1764959201130,0.00136316,89395.0,89394.0,0.05084]
[1764959201330,0.22508931,89395.0,89394.0,0.0395]
[1764959201758,0.22670218,89395.0,89394.0,0.002]
[1764959201952,0.22670218,89395.0,89394.0,0.0217]
[1764959202313,0.00297603,89395.0,89394.0,0.0217]
[1764959202516,0.22670218,89395.0,89394.0,0.0217]
[1764959204002,0.22670218,89395.0,89394.0,0.04363107]
[1764959204349,0.22670218,89395.0,89394.0,0.0217]
[1764959204762,0.22670218,89395.0,89394.0,0.04363107]
[1764959204960,0.22670218,89395.0,89394.0,0.0217]
[1764959205362,0.00297603,89395.0,89394.0,0.27456866]
[1764959205767,0.00297603,89395.0,89394.0,0.05084]
[1764959205965,0.22670218,89395.0,89394.0,0.05084]
[1764959206388,0.00136316,89395.0,89394.0,0.30448827]
[1764959206613,0.00136316,89395.0,89394.0,0.29649973]
[1764959206771,0.00136316,89395.0,89394.0,0.04363107]
[1764959206974,0.00136316,89395.0,89394.0,0.0217]
[1764959206975,0.22508931,89395.0,89394.0,0.0217]
[1764959207172,0.22508931,89395.0,89394.0,0.07277107]
[1764959207625,0.22508931,89395.0,89394.0,0.0217]
[1764959208267,0.22508931,89395.0,89394.0,0.04363107]
[1764959209485,0.22508931,89395.0,89394.0,0.0217]
[1764959209627,0.22508931,89395.0,89394.0,0.002]
[1764959210609,0.22508931,89395.0,89394.0,0.0217]
[1764959212428,0.22670218,89395.0,89394.0,0.002]
[1764959212964,0.22670218,89395.0,89394.0,0.05084]
[1764959213532,0.22670218,89395.0,89394.0,0.0217]
[1764959214438,0.22670218,89395.0,89394.0,0.002]
[1764959215661,0.22670218,89395.0,89394.0,0.01996]
[1764959215662,0.22570218,89395.0,89394.0,0.01996]